bitfinex-derivatives/quotes_BTCF0:USTF0_20251009
["timestamp","ask_amount","ask_price","bid_price","bid_amount"]
[1760027081668,0.27004,121190.0,121180.0,2.85144899]
[1760027082272,0.27004,121190.0,121180.0,2.70459042]
[1760027082467,0.27004,121190.0,121180.0,2.30459042]
[1760027082967,0.27004,121190.0,121180.0,1.52679042]
[1760027083170,0.27004,121190.0,121180.0,2.30459042]
[1760027085675,0.27004,121190.0,121180.0,1.81033628]
[1760027085878,0.27004,121190.0,121180.0,1.52679042]
[1760027086170,0.27004,121190.0,121180.0,2.30323042]
[1760027086577,0.27004,121190.0,121180.0,1.52679042]
[1760027086876,0.27004,121190.0,121180.0,2.30307042]
[1760027087880,0.27004,121190.0,121180.0,1.80881628]
[1760027088074,0.27004,121190.0,121180.0,2.30307042]
[1760027088773,0.27004,121190.0,121180.0,1.80881628]
[1760027088968,0.27004,121190.0,121180.0,2.30307042]
[1760027089481,0.27004,121190.0,121180.0,1.71880827]
[1760027089675,0.27004,121190.0,121180.0,2.49424827]
[1760027090384,0.27004,121190.0,121180.0,1.71880827]
[1760027090575,0.27004,121190.0,121180.0,2.30199042]
[1760027090776,0.27004,121190.0,121180.0,1.52679042]
[1760027091177,0.27004,121190.0,121180.0,2.30191042]
[1760027091481,0.27004,121190.0,121180.0,2.30183042]
[1760027091679,0.27004,121190.0,121180.0,1.03253628]
[1760027091873,0.829502,121190.0,121180.0,0.22844748]
[1760027092073,1.07662907,121190.0,121180.0,1.00332748]
[1760027092488,1.07662907,121190.0,121180.0,0.22844748]
[1760027092685,1.07662907,121190.0,121180.0,1.15094022]
[1760027093581,1.07662907,121190.0,121180.0,0.37606022]
[1760027093786,1.07662907,121190.0,121180.0,0.25789022]
[1760027093787,1.68455614,121190.0,121180.0,0.25789022]
[1760027093983,1.190302,121190.0,121180.0,0.25789022]
[1760027094184,1.190302,121190.0,121180.0,0.23031748]
[1760027094391,1.07662907,121190.0,121180.0,0.23031748]
[1760027094884,1.07662907,121190.0,121180.0,0.88479748]
[1760027095087,1.43742907,121190.0,121180.0,1.03241022]
[1760027095688,1.43742907,121190.0,121180.0,1.07605022]
[1760027095883,1.43742907,121190.0,121180.0,0.92843748]
[1760027096186,1.43742907,121190.0,121180.0,1.00483748]
[1760027096888,1.43742907,121190.0,121180.0,0.92843748]
[1760027097090,1.48742907,121190.0,121180.0,0.92843748]
[1760027097286,1.240302,121190.0,121180.0,1.00483748]
[1760027097491,1.48742907,121190.0,121180.0,1.08732628]
[1760027097691,1.48742907,121190.0,121180.0,1.00483748]
[1760027098088,1.48742907,121190.0,121180.0,1.33381335]
[1760027098089,0.39702,121190.0,121180.0,1.33381335]
[1760027098393,0.39702,121190.0,121180.0,1.58074042]
[1760027098691,0.64414707,121190.0,121180.0,1.33361335]
[1760027098892,0.64414707,121190.0,121180.0,1.08648628]
[1760027099187,0.72662907,121190.0,121180.0,1.08648628]
[1760027099380,0.72762907,121190.0,121180.0,1.33361335]
[1760027099586,0.72762907,121190.0,121180.0,1.33357335]
[1760027099787,0.72762907,121190.0,121180.0,1.25108455]
[1760027100395,0.72762907,121190.0,121180.0,1.00371748]
[1760027100588,0.72762907,121190.0,121180.0,1.25084455]
[1760027100782,0.72862907,121190.0,121180.0,1.00371748]
[1760027100991,0.72862907,121190.0,121180.0,1.25084455]
[1760027101187,0.72862907,121190.0,121180.0,0.23031748]
[1760027101388,0.72862907,121190.0,121180.0,1.25040455]
[1760027101694,0.72862907,121190.0,121180.0,1.00327748]
[1760027102693,0.72862907,121190.0,121180.0,1.25040455]
[1760027103290,0.72862907,121190.0,121180.0,1.00327748]
[1760027103998,0.72862907,121190.0,121180.0,0.23031748]
[1760027104187,1.73655614,121190.0,121180.0,0.11027748]
[1760027105393,1.242302,121190.0,121180.0,0.18667748]
[1760027105597,1.242302,121190.0,121180.0,0.31280628]
[1760027105598,0.881502,121190.0,121180.0,0.31280628]
[1760027105796,1.12862907,121190.0,121180.0,0.31280628]
[1760027106098,1.12862907,121190.0,121180.0,0.80706042]
[1760027106099,0.39902,121190.0,121180.0,0.80706042]
[1760027106306,0.64614707,121190.0,121180.0,1.33193335]
[1760027106499,0.72862907,121190.0,121180.0,1.33193335]
[1760027106996,0.72862907,121190.0,121180.0,0.55993335]
[1760027107203,0.72862907,121190.0,121180.0,1.33173335]
[1760027107500,0.72862907,121190.0,121180.0,0.23031748]
[1760027107706,0.72862907,121190.0,121180.0,0.15391748]
[1760027107902,0.72862907,121190.0,121180.0,1.00199748]
[1760027108199,1.12862907,121190.0,121180.0,0.23031748]
[1760027108402,1.12862907,121190.0,121180.0,0.31280628]
[1760027108703,0.64614707,121190.0,121180.0,0.55993335]
[1760027108901,0.64614707,121190.0,121180.0,1.33133335]
[1760027109100,0.64614707,121190.0,121180.0,1.43471401]
[1760027109399,0.72862907,121190.0,121180.0,1.43471401]
[1760027109803,0.64614707,121190.0,121180.0,1.43471401]
[1760027110006,0.72862907,121190.0,121180.0,1.43471401]
[1760027110207,0.72862907,121190.0,121180.0,1.35222521]
[1760027110699,1.73655614,121190.0,121180.0,0.21365814]
[1760027111097,1.73655614,121190.0,121180.0,0.11027748]
[1760027111904,1.73655614,121190.0,121180.0,0.0449]
[1760027112103,0.1914656,121170.0,121160.0,0.10338066]
[1760027112304,0.6808,121170.0,121160.0,0.45363947]
[1760027112504,0.32,121170.0,121160.0,3.57965361]
[1760027112803,0.07926178,121170.0,121160.0,3.5990724]
[1760027113008,0.07926178,121170.0,121160.0,4.34057361]
[1760027113208,0.00204,121190.0,121180.0,0.2064988]
[1760027113209,0.32565707,121190.0,121180.0,0.2064988]
[1760027113398,0.58565707,121190.0,121180.0,1.40446801]
[1760027113601,0.58465707,121190.0,121180.0,1.65159508]
[1760027113807,0.33753,121190.0,121180.0,1.89868215]
[1760027114007,0.26004,121190.0,121180.0,1.52772215]
[1760027114315,0.26004,121190.0,121180.0,3.05407374]
[1760027114714,0.26004,121190.0,121180.0,1.54181253]
[1760027114915,0.26004,121190.0,121180.0,2.90664922]
[1760027115115,0.26104,121190.0,121180.0,2.90664922]
[1760027115316,0.26204,121190.0,121180.0,2.90664922]
[1760027115713,0.26104,121190.0,121180.0,2.90676922]
[1760027115910,0.07749,121230.0,121220.0,0.04821]
[1760027116110,0.43829,121240.0,121230.0,0.2064648]
[1760027116309,0.07749,121240.0,121230.0,1.58535187]
[1760027116514,0.33749,121240.0,121230.0,1.58535187]
[1760027116913,0.26,121240.0,121230.0,1.65137508]
[1760027117109,0.26,121240.0,121230.0,1.40412801]
[1760027117325,0.26,121240.0,121230.0,1.89838215]
[1760027117618,0.26,121240.0,121230.0,1.40412801]
[1760027117814,0.26,121240.0,121230.0,1.65125508]
[1760027118015,0.26,121240.0,121230.0,1.89838215]
[1760027118214,0.26,121240.0,121230.0,2.04592667]
[1760027118524,0.262,121240.0,121230.0,0.78083253]
[1760027118719,0.33949,121240.0,121230.0,1.7987196]
[1760027119020,0.33949,121240.0,121230.0,1.80740466]
[1760027119021,0.263,121240.0,121230.0,1.80740466]
[1760027119421,0.263,121240.0,121230.0,1.9460938]
[1760027119719,0.263,121240.0,121230.0,1.1753338]
[1760027119908,0.263,121240.0,121230.0,1.9456538]
[1760027120114,0.263,121240.0,121230.0,1.9454538]
[1760027120422,0.263,121240.0,121230.0,1.1753338]
[1760027120721,0.263,121240.0,121230.0,1.79790928]
[1760027120921,0.263,121240.0,121230.0,0.64197307]
[1760027121221,0.263,121240.0,121230.0,1.02778928]
[1760027121427,0.263,121240.0,121230.0,1.79766928]
[1760027122020,0.263,121240.0,121230.0,1.79758928]
[1760027122224,0.263,121240.0,121230.0,0.64197307]
[1760027122421,0.263,121240.0,121230.0,1.79738928]
[1760027122721,0.263,121240.0,121230.0,1.79734928]
[1760027123118,0.263,121240.0,121230.0,1.02778928]
[1760027123320,0.263,121240.0,121230.0,1.79730928]
[1760027123518,0.263,121240.0,121230.0,1.79714928]
[1760027124916,0.263,121240.0,121230.0,1.02778928]
[1760027125119,0.263,121240.0,121230.0,1.42778928]
[1760027125320,0.263,121240.0,121230.0,2.19666928]
[1760027126114,0.263,121240.0,121230.0,1.42778928]
[1760027126320,0.263,121240.0,121230.0,4.25642928]
[1760027126619,0.263,121240.0,121230.0,1.42778928]
[1760027126824,0.263,121240.0,121230.0,4.25638928]
[1760027127225,0.263,121240.0,121230.0,4.25630928]
[1760027127826,0.263,121240.0,121230.0,3.48770928]
[1760027128021,0.12218,121280.0,121270.0,0.1139976]
[1760027128219,0.18218,121280.0,121270.0,0.1789177]
[1760027128421,0.44218,121280.0,121270.0,1.69397391]
[1760027129126,0.44518,121280.0,121270.0,1.69397391]
[1760027129328,0.44818,121280.0,121270.0,1.69397391]
[1760027129528,0.44818,121280.0,121270.0,1.3081577]
[1760027129716,0.44818,121280.0,121270.0,1.69397391]
[1760027130027,0.44818,121280.0,121270.0,0.92553391]
[1760027130223,0.44818,121280.0,121270.0,1.3080377]
[1760027130424,0.44818,121280.0,121270.0,1.69385391]
[1760027131326,1.2914008,121280.0,121270.0,0.0649201]
[1760027131524,1.2914008,121280.0,121270.0,0.768]
[1760027131724,0.12218,121260.0,121250.0,0.4748055]
[1760027132024,0.39218,121260.0,121250.0,0.39237]
[1760027132229,0.39218,121260.0,121250.0,0.8500412]
[1760027132527,0.39218,121260.0,121250.0,0.8816112]
[1760027132718,0.39218,121260.0,121250.0,0.03157]
[1760027132719,0.4746144,121260.0,121250.0,0.03157]
[1760027132926,0.4746144,121260.0,121250.0,0.76756]
[1760027133228,0.39218,121260.0,121250.0,0.8500012]
[1760027133932,0.39418,121260.0,121250.0,0.8500012]
[1760027134126,0.39418,121260.0,121250.0,0.8815712]
[1760027134927,0.39618,121260.0,121250.0,0.8815712]
[1760027136126,0.39618,121260.0,121250.0,0.8811712]
[1760027136735,0.39618,121260.0,121250.0,0.1140112]
[1760027136931,0.39618,121260.0,121250.0,0.8808512]
[1760027138137,0.39618,121260.0,121250.0,0.8804912]
[1760027139136,0.39618,121260.0,121250.0,0.1140112]
[1760027139434,0.39618,121260.0,121250.0,0.8802912]
[1760027140036,0.39618,121260.0,121250.0,0.8801312]
[1760027140631,0.39618,121260.0,121250.0,0.1140112]
[1760027140832,0.39618,121260.0,121250.0,0.8799712]
[1760027141032,0.39618,121260.0,121250.0,1.18647465]
[1760027141635,0.274,121260.0,121250.0,1.20392521]
[1760027141831,0.274,121260.0,121250.0,1.96976521]
[1760027142030,0.274,121260.0,121250.0,1.20392521]
[1760027142338,0.274,121260.0,121250.0,1.56972521]
[1760027142734,0.274,121260.0,121250.0,0.80392521]
[1760027142933,0.274,121260.0,121250.0,1.56972521]
[1760027143134,0.274,121260.0,121250.0,0.80392521]
[1760027143333,0.274,121260.0,121250.0,1.56956521]
[1760027143536,0.27,121260.0,121250.0,1.56956521]
[1760027143730,0.272,121260.0,121250.0,1.56956521]
[1760027144337,0.272,121260.0,121250.0,1.69581132]
[1760027144540,0.271,121260.0,121250.0,0.93017132]
[1760027144736,0.27,121260.0,121250.0,1.69573132]
[1760027144935,0.27,121260.0,121250.0,0.93017132]
[1760027145135,0.27,121260.0,121250.0,1.69545132]
[1760027145336,0.27,121260.0,121250.0,2.09545132]
[1760027147037,0.27,121260.0,121250.0,1.33017132]
[1760027147232,0.27,121260.0,121250.0,2.09505132]
[1760027148230,0.31457,121260.0,121250.0,2.09477132]
[1760027148435,0.39118,121260.0,121250.0,0.93017132]
[1760027148642,0.39118,121260.0,121250.0,1.69473132]
[1760027149432,0.39118,121260.0,121250.0,0.93017132]
[1760027149632,0.39118,121260.0,121250.0,1.69473132]
[1760027150037,0.31457,121260.0,121250.0,1.69457132]
[1760027150345,0.31457,121260.0,121250.0,1.56832521]
[1760027150536,0.31457,121260.0,121250.0,1.56820521]
[1760027150932,0.27,121260.0,121250.0,1.56816521]
[1760027152642,0.39118,121260.0,121250.0,0.4748112]
[1760027152844,0.39118,121260.0,121250.0,1.56780521]
[1760027153245,0.39118,121260.0,121250.0,1.68840084]
[1760027153843,0.39118,121260.0,121250.0,0.92452084]
[1760027154039,0.39118,121260.0,121250.0,1.68832084]
[1760027154940,1.20272841,121260.0,121250.0,0.0824412]
[1760027155140,1.20272841,121260.0,121250.0,0.8460412]
[1760027155348,1.20272841,121260.0,121250.0,0.7636]
[1760027155540,0.12118,121250.0,121240.0,0.03167]
[1760027155846,0.5236212,121250.0,121240.0,0.03167]
[1760027156042,1.61353521,121250.0,121240.0,0.03167]
[1760027156349,0.203628,121240.0,121230.0,0.82946321]
[1760027156541,1.17354201,121240.0,121230.0,0.82946321]
[1760027156739,1.244428,121240.0,121230.0,0.82946321]
[1760027156947,1.244428,121240.0,121230.0,0.91191801]
[1760027157546,1.246428,121240.0,121230.0,0.94358801]
[1760027157841,1.16398,121240.0,121230.0,0.94358801]
[1760027158147,0.40318,121240.0,121230.0,1.61088772]
[1760027158650,0.40318,121240.0,121230.0,0.54094801]
[1760027158947,0.40318,121240.0,121230.0,1.27247801]
[1760027158948,0.80318,121240.0,121230.0,1.27247801]
[1760027159240,0.12118,121190.0,121180.0,0.3608]
[1760027159446,0.12118,121180.0,121170.0,0.03167]
[1760027159742,0.36457,121180.0,121170.0,1.55059402]
[1760027159942,0.32,121180.0,121170.0,0.78683402]
[1760027160135,0.32,121180.0,121170.0,1.25331221]
[1760027160344,0.05239679,121180.0,121170.0,2.01715221]
[1760027161047,0.05239679,121180.0,121170.0,2.16469673]
[1760027161243,0.05239679,121180.0,121170.0,2.16493673]
[1760027161448,0.05239679,121180.0,121170.0,2.16485673]
[1760027161648,0.40537,121230.0,121220.0,0.0824616]
[1760027161649,0.04457,121230.0,121220.0,0.0824616]
[1760027161944,0.31457,121230.0,121220.0,0.74996131]
[1760027162142,0.31457,121230.0,121220.0,0.4432616]
[1760027162344,0.39118,121230.0,121220.0,1.12492]
[1760027162550,0.39118,121230.0,121220.0,0.8465416]
[1760027163740,0.39118,121230.0,121210.0,0.4432644]
[1760027164048,0.39118,121230.0,121210.0,0.50813758]
[1760027164049,0.12118,121220.0,121210.0,0.50813758]
[1760027164249,0.43118,121220.0,121210.0,1.27209758]
[1760027164552,0.79198,121220.0,121210.0,0.06487318]
[1760027164739,0.79198,121220.0,121210.0,0.8464284]
[1760027165251,0.43118,121220.0,121210.0,0.0824684]
[1760027165445,0.43118,121220.0,121210.0,0.8462284]
[1760027166551,0.5136416,121220.0,121210.0,0.8462284]
[1760027166749,0.43118,121220.0,121210.0,0.0824684]
[1760027166956,0.12118,121210.0,121200.0,0.4432721]
[1760027167144,0.41118,121210.0,121200.0,0.4432721]
[1760027167455,1.2544484,121210.0,121200.0,0.83019985]
[1760027168149,1.2544484,121210.0,121200.0,0.8460352]
[1760027169151,1.2544484,121210.0,121200.0,0.0824752]
[1760027169354,1.2544484,121210.0,121200.0,0.8459552]
[1760027169744,1.2564484,121210.0,121200.0,0.0824752]
[1760027169949,1.17398,121210.0,121200.0,0.0824752]
[1760027170150,0.81318,121210.0,121200.0,0.0824752]
[1760027170453,1.17398,121210.0,121200.0,0.15598603]
[1760027170750,1.17398,121210.0,121200.0,0.91922603]
[1760027170950,1.17398,121210.0,121200.0,0.15598603]
[1760027171150,1.2564484,121210.0,121200.0,0.91910603]
[1760027171346,1.2564484,121210.0,121200.0,0.9841164]
[1760027171544,1.2564484,121210.0,121200.0,0.2209964]
[1760027171741,1.17398,121210.0,121200.0,0.2209964]
[1760027172145,1.2564484,121210.0,121200.0,0.2209964]
[1760027172748,1.17398,121210.0,121200.0,0.2209964]
[1760027173351,1.17398,121210.0,121200.0,0.14748557]
[1760027173560,1.2564484,121210.0,121200.0,0.14748557]
[1760027173746,1.2564484,121210.0,121200.0,0.91024557]
[1760027173952,1.2564484,121210.0,121200.0,0.91016557]
[1760027174350,1.2564484,121210.0,121200.0,0.91008557]
[1760027174351,1.17398,121210.0,121200.0,0.91008557]
[1760027174745,1.2564484,121210.0,121200.0,0.14748557]
[1760027175045,1.2564484,121210.0,121200.0,0.91008557]
[1760027175253,1.2564484,121210.0,121200.0,0.90996557]
[1760027175449,1.2564484,121210.0,121200.0,0.9834764]
[1760027176049,1.2564484,121210.0,121200.0,0.9834364]
[1760027176651,0.81318,121210.0,121200.0,0.9833564]
[1760027176852,0.8956484,121210.0,121200.0,0.9833564]
[1760027177357,0.81318,121210.0,121200.0,0.9833564]
[1760027177562,0.41318,121210.0,121200.0,0.9833564]
[1760027177766,0.41318,121210.0,121200.0,1.01294045]
[1760027178060,0.41318,121210.0,121200.0,0.61138045]
[1760027178265,0.41318,121210.0,121200.0,1.57706528]
[1760027179163,0.41318,121210.0,121200.0,1.27036557]
[1760027179369,0.41318,121210.0,121200.0,1.37330246]
[1760027183372,0.41318,121210.0,121200.0,1.27036557]
[1760027183966,0.33657,121210.0,121200.0,1.21498528]
[1760027184369,0.33657,121210.0,121200.0,2.07977322]
[1760027184563,0.292,121210.0,121200.0,2.07977322]
[1760027184869,0.04457,121230.0,121210.0,0.0824674]
[1760027185170,0.23457,121230.0,121220.0,1.97630923]
[1760027185470,0.23457,121230.0,121220.0,2.27316131]
[1760027185668,0.23457,121230.0,121220.0,2.37634571]
[1760027186369,0.23557,121230.0,121220.0,2.37634571]
[1760027186869,0.1965798,121230.0,121220.0,2.37634571]
[1760027187170,0.04631,121250.0,121240.0,0.082448]
[1760027187366,0.04631,121260.0,121250.0,0.0824412]
[1760027187669,0.35631,121260.0,121250.0,0.82361551]
[1760027187869,0.35631,121260.0,121250.0,1.22361551]
[1760027188065,0.35631,121260.0,121250.0,1.22875403]
[1760027188470,0.35731,121260.0,121250.0,1.22875403]
[1760027189871,0.35831,121260.0,121250.0,1.22875403]
[1760027190170,0.35831,121260.0,121250.0,0.92205432]
[1760027190369,0.35831,121260.0,121250.0,1.99075403]
[1760027190567,0.2795913,121260.0,121250.0,1.99075403]
[1760027190765,0.2357451,121260.0,121250.0,1.22875403]
[1760027190967,0.04631,121280.0,121270.0,0.0824276]
[1760027191265,0.36631,121280.0,121270.0,1.63198596]
[1760027191570,0.36631,121280.0,121270.0,1.70566056]
[1760027191770,0.36631,121280.0,121270.0,2.10558056]
[1760027192369,0.36631,121280.0,121270.0,2.41228027]
[1760027193066,0.36631,121280.0,121270.0,2.41220027]
[1760027193267,0.36631,121280.0,121270.0,2.41200027]
[1760027193470,0.36631,121280.0,121270.0,1.72885513]
[1760027193670,0.2218674,121280.0,121270.0,2.49073513]
[1760027193970,5e-08,121280.0,121270.0,1.65518053]
[1760027194364,0.04631,121300.0,121270.0,2.58202923]
[1760027194566,0.32631,121300.0,121290.0,1.18948857]
[1760027194770,0.32631,121300.0,121290.0,1.95136857]
[1760027194971,0.32631,121300.0,121290.0,2.05452031]
[1760027195471,0.32631,121300.0,121290.0,1.58948857]
[1760027195668,0.32631,121300.0,121290.0,1.204014]
[1760027195872,0.32631,121300.0,121290.0,2.35120857]
[1760027196065,0.32631,121300.0,121290.0,1.95120857]
[1760027196267,0.32631,121300.0,121290.0,2.02436704]
[1760027196469,0.32631,121300.0,121290.0,1.26264704]
[1760027196670,0.32631,121300.0,121290.0,0.87717247]
[1760027196869,0.32631,121300.0,121290.0,1.26264704]
[1760027197072,0.32631,121300.0,121290.0,0.804014]
[1760027197073,0.40086,121300.0,121290.0,0.804014]
[1760027197371,0.40086,121300.0,121290.0,1.63860146]
[1760027197763,0.40086,121300.0,121290.0,2.02407603]
[1760027197970,0.40086,121300.0,121290.0,1.26259603]
[1760027198172,0.40086,121300.0,121290.0,2.02419603]
[1760027198667,0.40086,121300.0,121290.0,1.26259603]
[1760027199075,0.40086,121300.0,121290.0,1.95096857]
[1760027199265,0.40086,121300.0,121290.0,1.18948857]
[1760027199471,0.40086,121300.0,121290.0,1.95084857]
[1760027199673,0.40086,121300.0,121290.0,2.02395603]
[1760027199868,0.40086,121300.0,121290.0,1.26259603]
[1760027200069,0.40086,121300.0,121290.0,1.63836146]
[1760027200475,0.40086,121300.0,121290.0,1.63828146]
[1760027200774,0.40086,121300.0,121290.0,1.63820146]
[1760027201475,0.40086,121300.0,121290.0,1.565094]
[1760027201974,0.32631,121300.0,121290.0,1.95056857]
[1760027202370,0.32631,121300.0,121290.0,1.565094]
[1760027202874,0.32631,121300.0,121290.0,1.95056857]
[1760027203970,0.32631,121300.0,121290.0,1.95020857]
[1760027204676,0.32631,121300.0,121290.0,1.564534]
[1760027205072,0.32631,121300.0,121290.0,1.18948857]
[1760027205376,0.32631,121300.0,121290.0,1.95024857]
[1760027205576,0.32631,121300.0,121290.0,1.95012857]
[1760027208080,0.32631,121300.0,121290.0,1.94980857]
[1760027208281,0.32631,121300.0,121290.0,1.18948857]
[1760027208478,0.32631,121300.0,121290.0,1.94972857]
[1760027209480,0.32631,121300.0,121290.0,1.18948857]
[1760027209670,0.32631,121300.0,121290.0,1.94964857]
[1760027209876,0.32631,121300.0,121290.0,1.18948857]
[1760027210178,0.32631,121300.0,121290.0,1.94964857]
[1760027210380,0.32631,121300.0,121290.0,1.26259603]
[1760027210579,0.32631,121300.0,121290.0,2.02275603]
[1760027211178,0.40589,121300.0,121290.0,0.87712146]
[1760027211476,0.80589,121300.0,121290.0,1.564174]
[1760027211682,0.80589,121300.0,121290.0,1.63728146]
[1760027212078,0.80589,121300.0,121290.0,1.27648146]
[1760027213077,1.19136457,121300.0,121290.0,0.3608]
[1760027213383,1.27377177,121300.0,121290.0,1.12092]
[1760027213578,0.8882972,121300.0,121290.0,0.3608]
[1760027213782,0.207684,121290.0,121280.0,0.43390746]
[1760027213979,0.487684,121290.0,121280.0,0.83322746]
[1760027215788,0.40527,121290.0,121280.0,0.83345549]
[1760027215983,0.40527,121290.0,121280.0,0.07333549]
[1760027216285,0.40527,121290.0,121280.0,1.50639457]
[1760027216786,0.40527,121290.0,121280.0,1.60954631]
[1760027217186,0.487684,121290.0,121280.0,1.60954631]
[1760027218588,0.487684,121290.0,121280.0,1.22407174]
[1760027219780,0.487684,121290.0,121280.0,0.86327174]
[1760027220184,0.487684,121290.0,121280.0,1.22407174]
[1760027221193,0.487684,121290.0,121280.0,1.50639457]
[1760027222491,0.408104,121290.0,121280.0,0.74627457]
[1760027222791,0.408104,121290.0,121280.0,1.50643457]
[1760027223087,0.32569,121290.0,121280.0,0.82869537]
[1760027223286,0.16982509,121290.0,121280.0,2.13639989]
[1760027224690,0.21551509,121290.0,121280.0,2.13639989]
[1760027224888,0.21551509,121290.0,121280.0,1.98885537]
[1760027225386,0.21551509,121290.0,121280.0,2.26087204]
[1760027225586,0.21551509,121290.0,121280.0,2.13623948]
[1760027225992,0.21551509,121290.0,121280.0,1.37607948]
[1760027226292,0.16982509,121290.0,121280.0,2.13623948]
[1760027226489,0.16982509,121290.0,121280.0,1.37607948]
[1760027226689,0.21551509,121290.0,121280.0,2.13619948]
[1760027227188,0.21551509,121290.0,121280.0,1.37607948]
[1760027227493,0.21551509,121290.0,121280.0,2.13619948]
[1760027228590,0.21551509,121290.0,121280.0,1.98881537]
[1760027229189,0.21551509,121290.0,121280.0,2.11422655]
[1760027229591,0.16982509,121290.0,121280.0,2.11422655]
[1760027231190,0.16982509,121290.0,121280.0,1.35410655]
[1760027231394,0.16982509,121290.0,121280.0,2.11418655]
[1760027232188,0.16982509,121290.0,121280.0,1.35410655]
[1760027232396,0.21592509,121290.0,121280.0,2.11418655]
[1760027232585,0.16982509,121290.0,121280.0,2.11418655]
[1760027233291,0.16982509,121290.0,121280.0,1.35410655]
[1760027233490,0.04631,121310.0,121290.0,0.0824125]
[1760027233696,0.20631,121310.0,121300.0,1.91740354]
[1760027233887,0.16,121310.0,121300.0,1.91740354]
[1760027234293,0.16,121310.0,121300.0,1.53192897]
[1760027234690,0.161,121310.0,121300.0,1.58872177]
[1760027234896,0.162,121310.0,121300.0,1.58872177]
[1760027235297,0.161,121310.0,121300.0,1.72532177]
[1760027235497,0.161,121310.0,121300.0,1.58872177]
[1760027235698,0.161,121310.0,121300.0,1.58868177]
[1760027235898,0.161,121310.0,121300.0,0.82868177]
[1760027236099,0.16,121310.0,121300.0,0.82868177]
[1760027236298,0.16,121310.0,121300.0,1.58868177]
[1760027236799,0.16,121310.0,121300.0,1.73606588]
[1760027237697,0.2061,121310.0,121300.0,1.73606588]
[1760027239900,0.2061,121310.0,121300.0,1.58868177]
[1760027240402,0.2061,121310.0,121300.0,0.82868177]
[1760027240701,0.2061,121310.0,121300.0,1.58860177]
[1760027241295,0.2061,121310.0,121300.0,1.69169472]
[1760027242102,0.2061,121310.0,121300.0,0.93177472]
[1760027242303,0.3662704,121310.0,121300.0,1.24848752]
[1760027242704,0.2885004,121310.0,121300.0,1.24848752]
[1760027242904,0.2885004,121310.0,121300.0,1.50619457]
[1760027243098,0.2061,121310.0,121300.0,1.58856177]
[1760027243298,0.2061,121310.0,121300.0,1.69165472]
[1760027243493,0.2061,121310.0,121300.0,1.28609268]
[1760027243698,0.2061,121310.0,121300.0,1.79937517]
[1760027244305,0.2061,121310.0,121300.0,1.03949517]
[1760027244506,0.2061,121310.0,121300.0,1.79937517]
[1760027245004,0.2061,121310.0,121300.0,1.69628222]
[1760027245805,0.2061,121310.0,121300.0,0.93640222]
[1760027246005,0.2061,121310.0,121300.0,1.69624222]
[1760027246395,0.16,121310.0,121300.0,1.69624222]
[1760027246599,0.16,121310.0,121300.0,1.94283973]
[1760027247196,0.16,121310.0,121300.0,2.09022384]
[1760027247899,0.04631,121320.0,121300.0,2.49018384]
[1760027248103,0.16,121320.0,121310.0,1.18299293]
[1760027248396,0.16,121320.0,121310.0,2.34279293]
[1760027248599,0.16,121320.0,121310.0,1.6030004]
[1760027248995,0.16,121320.0,121310.0,1.79468071]
[1760027249207,0.15462234,121320.0,121310.0,1.79468071]
[1760027249704,0.10814245,121320.0,121310.0,2.53447324]
[1760027250303,0.04366278,121320.0,121310.0,2.34279293]
[1760027250508,0.04366278,121320.0,121310.0,1.73024778]
[1760027250704,0.04366278,121320.0,121310.0,2.49000778]
[1760027250904,0.04366278,121320.0,121310.0,1.79525202]
[1760027251104,0.0461,121340.0,121330.0,0.0823868]
[1760027251301,0.26,121340.0,121330.0,2.70349933]
[1760027251507,0.14510728,121340.0,121330.0,1.94377933]
[1760027251808,0.14510728,121340.0,121330.0,4.76173933]
[1760027252009,0.14510728,121340.0,121330.0,6.26173933]
[1760027253404,0.14510728,121340.0,121330.0,5.82788638]
[1760027254703,0.14510728,121340.0,121330.0,5.97514123]
[1760027255003,0.14510728,121340.0,121330.0,6.62962343]
[1760027255408,0.13792779,121340.0,121330.0,6.62962343]
[1760027255603,0.0461,121360.0,121350.0,0.0823732]
[1760027255807,0.19,121360.0,121350.0,0.74911278]
[1760027256002,0.19,121360.0,121350.0,1.86951278]
[1760027256199,0.19,121360.0,121350.0,2.06048339]
[1760027257106,0.19,121360.0,121350.0,2.20773824]
[1760027257107,0.191,121360.0,121350.0,2.20773824]
[1760027257505,0.191,121360.0,121350.0,3.70773824]
[1760027258009,0.192,121360.0,121350.0,3.70773824]
[1760027258703,0.192,121360.0,121350.0,3.71401519]
[1760027259609,0.192,121360.0,121350.0,3.56676034]
[1760027261202,0.192,121360.0,121350.0,4.86488034]
[1760027261408,0.192,121360.0,121350.0,6.02428034]
[1760027261607,0.192,121360.0,121350.0,5.71834076]
[1760027262412,0.0461,121390.0,121360.0,0.0823654]
[1760027262709,0.6508,121390.0,121380.0,0.157041]
[1760027263012,0.6508,121390.0,121380.0,0.36045]
[1760027263406,0.69705,121390.0,121380.0,0.36045]
[1760027263613,0.6508,121390.0,121380.0,0.36045]
[1760027264107,0.6518,121390.0,121380.0,0.36045]
[1760027264509,0.291,121390.0,121380.0,1.11977]
[1760027264813,0.29,121390.0,121380.0,1.22230058]
[1760027265411,0.29,121390.0,121380.0,1.11977]
[1760027265603,0.29,121390.0,121380.0,0.72125]
[1760027265808,0.29,121390.0,121380.0,1.58302058]
[1760027266509,0.29,121390.0,121380.0,0.82378058]
[1760027267017,0.29,121390.0,121380.0,3.64038058]
[1760027267812,0.29,121390.0,121380.0,0.82378058]
[1760027268012,0.29,121390.0,121380.0,3.64030058]
[1760027268208,0.29,121390.0,121380.0,3.53777]
[1760027268414,0.29,121390.0,121380.0,1.48041]
[1760027268716,0.29,121390.0,121380.0,1.17447042]
[1760027268904,0.29,121390.0,121380.0,1.48041]
[1760027269306,0.21194548,121390.0,121380.0,1.48037]
[1760027270805,0.15891015,121390.0,121380.0,1.48037]
[1760027271918,0.15891015,121390.0,121380.0,1.48137]
[1760027272709,0.15891015,121390.0,121380.0,1.58390058]
[1760027273017,0.15891015,121390.0,121380.0,1.48137]
[1760027273216,0.3608,121410.0,121390.0,0.0823446]
[1760027273413,0.05083,121400.0,121380.0,0.4441495]
[1760027273617,0.32083,121400.0,121390.0,0.8413061]
[1760027273822,0.68163,121400.0,121390.0,0.8413061]